fUSD/lending_fUSD_20240831
["ID","MTS","AMOUNT","RATE_DAILY","PERIOD"]
[336744487,1725096166549,-598.25,0.00041643,120]
[336744488,1725096166599,-558.12,0.00041643,120]
[336744489,1725096166647,-643.08,0.00041643,120]
[336744490,1725096166694,-585.19,0.00041643,120]
[336744491,1725096166743,-2179.7,0.00041643,120]
[336744492,1725096166790,-777.19,0.00041643,120]
[336744493,1725096166844,-2274.45,0.00041643,120]
[336744494,1725096166892,-500.0,0.00041643,120]
[336744495,1725096166941,-635.42,0.00041643,120]
[336744496,1725096166989,-500.0,0.00041643,120]
[336744497,1725096167038,-868.12,0.00041643,120]
[336744498,1725096167087,-500.0,0.00041643,120]
[336744499,1725096167136,-1151.6,0.00041643,120]
[336744500,1725096167182,-500.0,0.00041643,120]
[336744501,1725096167228,-562.37,0.00041643,120]
[336744502,1725096167273,-1582.23,0.00041643,120]
[336744503,1725096167319,-867.17,0.00041643,120]
[336744504,1725096167364,-1256.91,0.00041643,120]
[336744505,1725096167411,-500.0,0.00041643,120]
[336744506,1725096167462,-500.0,0.00041643,120]
[336744507,1725096167515,-500.0,0.00041643,120]
[336744508,1725096167565,-500.0,0.00041643,120]
[336744509,1725096167621,-735.6,0.00041643,120]
[336744510,1725096167678,-2186.79,0.00041643,120]
[336744511,1725096167893,-680.15,0.00041643,120]
[336744512,1725096167944,-4740.51,0.00041643,120]
[336744513,1725096167995,-500.0,0.00041643,120]
[336744514,1725096168047,-786.8,0.00041643,120]
[336744515,1725096168097,-601.44,0.00041643,120]
[336744516,1725096168147,-12860.68,0.00041643,120]
[336744517,1725096168197,-500.0,0.00041643,120]
[336744518,1725096168246,-834.67,0.00041643,120]
[336744519,1725096168294,-500.0,0.00041643,120]
[336744520,1725096168343,-500.0,0.00041643,120]
[336744521,1725096168393,-954.8,0.00041643,120]
[336744522,1725096168441,-961.43,0.00041643,120]
[336744523,1725096168492,-997.06,0.00041643,120]
[336744524,1725096168542,-500.0,0.00041643,120]
[336744525,1725096168593,-507.58,0.00041643,120]
[336744526,1725096168646,-500.0,0.00041643,120]
[336744527,1725096168695,-500.0,0.00041643,120]
[336744528,1725096168747,-996.39,0.00041643,120]
[336744529,1725096168800,-500.0,0.00041643,120]
[336744530,1725096168852,-431.70006103,0.00041643,120]
[336744531,1725096168904,-615.17,0.00041643,120]
[336744532,1725096168957,-510.32,0.00041643,120]
[336744533,1725096169008,-4187.61,0.00041643,120]
[336744534,1725096169058,-941.17,0.00041643,120]
[336744535,1725096169110,-10782.5,0.00041643,120]
[336744536,1725096169160,-591.64,0.00041643,120]
[336744537,1725096169210,-500.0,0.00041643,120]
[336744538,1725096169260,-500.0,0.00041643,120]
[336744539,1725096169310,-500.0,0.00041643,120]
[336744540,1725096169359,-519.14,0.00041643,120]
[336744541,1725096169409,-675.23,0.00041643,120]
[336744542,1725096169460,-653.02,0.00041643,120]
[336744543,1725096169509,-500.0,0.00041643,120]
[336744544,1725096169560,-164.02382804,0.00041643,120]
[336744545,1725096169611,-500.0,0.00041643,120]
[336744546,1725096169660,-1228.8,0.00041643,120]
[336744547,1725096169709,-557.32,0.00041643,120]
[336744548,1725096169764,-1015.85,0.00041643,120]
[336744549,1725096169814,-1823.12,0.00041643,120]
[336744550,1725096169864,-2186.95,0.00041643,120]
[336744551,1725096169916,-500.0,0.00041643,120]
[336744552,1725096169965,-652.33,0.00041643,120]
[336744553,1725096170013,-702.23,0.00041643,120]
[336744554,1725096170064,-2082.61,0.00041643,120]
[336744555,1725096170111,-500.0,0.00041643,120]
[336744556,1725096170156,-500.0,0.00041643,120]
[336744557,1725096170202,-500.0,0.00041643,120]
[336744558,1725096170250,-694.0,0.00041643,120]
[336744559,1725096170297,-997.15,0.00041643,120]
[336744560,1725096170343,-604.52,0.00041643,120]
[336744561,1725096170389,-501.24,0.00041643,120]
[336744562,1725096170435,-500.0,0.00041643,120]
[336744563,1725096170483,-831.62,0.00041643,120]
[336744564,1725096170531,-835.51,0.00041643,120]
[336744565,1725096170579,-762.21,0.00041643,120]
[336744566,1725096170627,-6300.15,0.00041643,120]
[336744567,1725096170675,-887.91,0.00041643,120]
[336744568,1725096170721,-592.15053962,0.00041643,120]
[336744569,1725096170771,-593.65,0.00041643,120]
[336744570,1725096170823,-500.0,0.00041643,120]
[336744571,1725096170870,-4114.25,0.00041643,120]
[336744572,1725096170918,-636.31,0.00041643,120]
[336744573,1725096170966,-11442.62,0.00041643,120]
[336744574,1725096171013,-564.38,0.00041643,120]
[336744575,1725096171058,-159.62797082,0.00041643,120]
[336744576,1725096171106,-500.0,0.00041643,120]
[336744577,1725096171154,-500.0,0.00041643,120]
[336744578,1725096171203,-1161.84,0.00041643,120]
[336744579,1725096171249,-1654.38,0.00041643,120]
[336744580,1725096171297,-588.17,0.00041643,120]
[336744581,1725096171346,-1647.2,0.00041643,120]
[336744582,1725096171392,-500.0,0.00041643,120]
[336744583,1725096171437,-500.0,0.00041643,120]
[336744584,1725096171485,-874.76,0.00041643,120]
[336744585,1725096171533,-1031.07,0.00041643,120]
[336744586,1725096171580,-616.06595969,0.00041643,120]
[336744587,1725096171627,-1806.46,0.00041643,120]
[336744588,1725096171679,-1786.04,0.00041643,120]
[336744589,1725096171725,-500.0,0.00041643,120]
[336744590,1725096171772,-796.11,0.00041643,120]
[336744591,1725096171818,-4060.92,0.00041643,120]
[336744592,1725096171864,-1529.27,0.00041643,120]
[336744593,1725096171910,-764.48,0.00041643,120]
[336744594,1725096171956,-2246.61,0.00041643,120]
[336744595,1725096172003,-2118.38,0.00041643,120]
[336744596,1725096172049,-817.1,0.00041643,120]
[336744597,1725096172096,-500.0,0.00041643,120]
[336744598,1725096172144,-602.83,0.00041643,120]
[336744599,1725096172192,-2580.32,0.00041643,120]
[336744600,1725096172248,-2730.58,0.00041643,120]
[336744601,1725096172301,-567.84,0.00041643,120]
[336744602,1725096172349,-906.16,0.00041643,120]
[336744603,1725096172397,-881.66,0.00041643,120]
[336744604,1725096172445,-6580.53,0.00041643,120]
[336744605,1725096172494,-500.0,0.00041643,120]
[336744606,1725096172545,-776.12,0.00041643,120]
[336744607,1725096172593,-3133.75,0.00041643,120]
[336744608,1725096172645,-1318.72,0.00041643,120]
[336744609,1725096172692,-512.71,0.00041643,120]
[336744610,1725096172740,-500.0,0.00041643,120]
[336744611,1725096172788,-3220.73,0.00041643,120]
[336744612,1725096172839,-924.45,0.00041643,120]
[336744613,1725096172887,-1223.28,0.00041643,120]
[336744614,1725096172938,-1129.99,0.00041643,120]
[336744615,1725096173202,-500.0,0.00041643,120]
[336744616,1725096173255,-608.6,0.00041643,120]
[336744617,1725096173308,-1166.67,0.00041643,120]
[336744618,1725096173360,-500.0,0.00041643,120]
[336744619,1725096173412,-18433.68,0.00041643,120]
[336744620,1725096173464,-1392.73,0.00041643,120]
[336744621,1725096173513,-1402.0,0.00041643,120]
[336744622,1725096173565,-9146.0,0.00041643,120]
[336744623,1725096173616,-1370.15,0.00041643,120]
[336744624,1725096173667,-500.0,0.00042191,120]
[336744625,1725096173719,-761.33,0.00042191,120]
[336744626,1725096173768,-500.0,0.00042191,120]
[336744627,1725096173819,-500.0,0.00042191,120]
[336744628,1725096173872,-500.0,0.00042191,120]
[336744629,1725096173922,-500.0,0.00042191,120]
[336744630,1725096173972,-728.45,0.00042191,120]
[336744631,1725096174026,-500.0,0.00042191,120]
[336744632,1725096174077,-602.57,0.00042191,120]
[336744633,1725096174126,-500.0,0.00042191,120]
[336744634,1725096174176,-1536.81,0.00042191,120]
[336744635,1725096174225,-718.45,0.00042191,120]
[336744636,1725096174274,-500.0,0.00042191,120]
[336744637,1725096174323,-613.86,0.00042191,120]
[336744638,1725096174371,-500.0,0.00042191,120]
[336744639,1725096174420,-737.5,0.00042191,120]
[336744640,1725096174470,-500.0,0.00042191,120]
[336744641,1725096174517,-500.0,0.00042191,120]
[336744642,1725096174572,-500.0,0.00042191,120]
[336744643,1725096174622,-500.0,0.00042191,120]
[336744644,1725096174676,-500.0,0.00042191,120]
[336744645,1725096174728,-854.52,0.00042191,120]
[336744646,1725096174777,-500.0,0.00042191,120]
[336744647,1725096174825,-500.0,0.00042191,120]
[336744648,1725096174872,-500.0,0.00042191,120]
[336744649,1725096174918,-500.0,0.00042191,120]
[336744650,1725096174964,-500.0,0.00042191,120]
[336744651,1725096175009,-500.0,0.00042191,120]
[336744652,1725096175055,-500.0,0.00042191,120]
[336744653,1725096175100,-504.81,0.00042191,120]
[336744654,1725096175148,-500.0,0.00042191,120]
[336744655,1725096175195,-500.0,0.00042191,120]
[336744656,1725096175243,-577.66,0.00042191,120]
[336744657,1725096175290,-500.0,0.00042191,120]
[336744658,1725096175339,-537.13,0.00042191,120]
[336744659,1725096175388,-500.0,0.00042191,120]
[336744660,1725096175437,-639.49,0.00042191,120]
[336744661,1725096175487,-500.0,0.00042191,120]
[336744662,1725096175535,-218.64920165,0.00042191,120]
[336744663,1725096175586,-500.0,0.00042191,120]
[336744664,1725096175642,-558.16,0.00042191,120]
[336744665,1725096175694,-500.0,0.00042191,120]
[336744666,1725096175743,-500.0,0.00042191,120]
[336744667,1725096175792,-606.69,0.00042191,120]
[336744668,1725096175845,-500.0,0.00042191,120]
[336744669,1725096175897,-500.0,0.00042191,120]
[336744670,1725096175948,-500.0,0.00042191,120]
[336744671,1725096175998,-500.06,0.00042191,120]
[336744672,1725096176048,-533.19,0.00042191,120]
[336744673,1725096176096,-781.37,0.00042191,120]
[336744674,1725096176143,-500.0,0.00042191,120]
[336744675,1725096176191,-500.0,0.00042191,120]
[336744676,1725096176237,-541.93,0.00042191,120]
[336744677,1725096176285,-541.84,0.00042191,120]
[336744678,1725096176334,-500.0,0.00042191,120]
[336744679,1725096176381,-500.0,0.00042191,120]
[336744680,1725096176427,-500.0,0.00042191,120]
[336744681,1725096176473,-500.0,0.00042191,120]
[336744682,1725096176518,-500.0,0.00042191,120]
[336744683,1725096176563,-600.0,0.00042191,120]
[336744684,1725096176608,-500.0,0.00042191,120]
[336744685,1725096176654,-500.0,0.00042191,120]
[336744686,1725096176700,-838.09,0.00042191,120]
[336744687,1725096176747,-500.0,0.00042191,120]
[336744688,1725096176793,-509.55,0.00042191,120]
[336744689,1725096176841,-500.0,0.00042191,120]
[336744690,1725096176889,-500.0,0.00042191,120]
[336744691,1725096176937,-708.98,0.00042191,120]
[336744692,1725096176985,-500.0,0.00042191,120]
[336744693,1725096177034,-500.0,0.00042191,120]
[336744694,1725096177084,-500.0,0.00042191,120]
[336744695,1725096177134,-1509.98,0.00042191,120]
[336744696,1725096177184,-558.78,0.00042191,120]
[336744697,1725096177235,-500.0,0.00042191,120]
[336744698,1725096177285,-1624.06,0.00042191,120]
[336744699,1725096177336,-500.0,0.00042191,120]
[336744700,1725096177386,-500.0,0.00042191,120]
[336744701,1725096177435,-640.25,0.00042191,120]
[336744702,1725096177486,-500.0,0.00042191,120]
[336744703,1725096177535,-934.21,0.00042191,120]
[336744704,1725096177584,-969.88,0.00042191,120]
[336744705,1725096177631,-791.62,0.00042191,120]
[336744706,1725096177683,-915.31,0.00042191,120]
[336744707,1725096177730,-1688.13,0.00042191,120]
[336744708,1725096177777,-616.66,0.00042191,120]
[336744709,1725096177825,-777.63,0.00042191,120]
[336744710,1725096177872,-1310.98,0.00042191,120]
[336744711,1725096177918,-875.1,0.00042191,120]
[336744712,1725096177964,-1032.09,0.00042191,120]
[336744713,1725096178010,-2876.73,0.00042191,120]
[336744714,1725096178056,-761.85,0.00042191,120]
[336744715,1725096178102,-1344.34,0.00042191,120]
[336744716,1725096178149,-500.0,0.00042191,120]
[336744717,1725096178194,-4839.39,0.00042191,120]
[336744718,1725096178237,-500.0,0.00042191,120]
[336744719,1725096178436,-500.0,0.00042191,120]
[336744720,1725096178485,-1399.41,0.00042191,120]
[336744721,1725096178532,-500.0,0.00042191,120]
[336744722,1725096178580,-588.48,0.00042191,120]
[336744723,1725096178627,-500.0,0.00042191,120]
[336744724,1725096178676,-500.0,0.00042191,120]
[336744725,1725096178723,-500.0,0.00042191,120]
[336744726,1725096178768,-559.89,0.00042191,120]
[336744727,1725096178813,-500.0,0.00042191,120]
[336744728,1725096178860,-500.0,0.00042191,120]
[336744729,1725096178907,-500.0,0.00042191,120]
[336744730,1725096178953,-511.74,0.00042191,120]
[336744731,1725096178999,-500.0,0.00042191,120]
[336744732,1725096179046,-500.0,0.00042191,120]
[336744733,1725096179091,-1112.54,0.00042191,120]
[336744734,1725096179134,-500.0,0.00042191,120]
[336744735,1725096179176,-500.0,0.00042191,120]
[336744736,1725096179220,-508.19,0.00042191,120]
[336744737,1725096179264,-2558.51,0.00042191,120]
[336744738,1725096179307,-694.5,0.00042191,120]
[336744739,1725096179350,-500.0,0.00042191,120]
[336744740,1725096179392,-923.73,0.00042191,120]
[336744741,1725096179433,-500.0,0.00042191,120]
[336744742,1725096179479,-1446.32,0.00042191,120]
[336744743,1725096179528,-500.0,0.00042191,120]
[336744744,1725096179576,-1350.52,0.00042191,120]
[336744745,1725096179626,-500.0,0.00042191,120]
[336744746,1725096179682,-1170.8,0.00042191,120]
[336744747,1725096179734,-618.91,0.00042191,120]
[336744748,1725096179788,-500.0,0.00042191,120]
[336744749,1725096179837,-500.0,0.00042191,120]
[336744750,1725096179888,-3324.83,0.00042191,120]
[336744751,1725096179941,-1273.21,0.00042191,120]
[336744752,1725096179991,-500.0,0.00042191,120]
[336744753,1725096180042,-536.51878674,0.00042191,120]
[336744754,1725096180091,-1114.0,0.00042191,120]
[336744755,1725096180141,-1256.51,0.00042191,120]
[336744756,1725096180200,-500.0,0.00042191,120]
[336744757,1725096180249,-1913.46,0.00042191,120]
[336744758,1725096180300,-1221.34,0.00042191,120]
[336744759,1725096180351,-500.0,0.00042191,120]
[336744760,1725096180404,-500.0,0.00042191,120]
[336744761,1725096180456,-500.0,0.00042191,120]
[336744762,1725096180509,-1287.93,0.00042191,120]
[336744763,1725096180558,-500.0,0.00042191,120]
[336744764,1725096180608,-500.0,0.00042191,120]
[336744765,1725096180655,-925.06,0.00042191,120]
[336744766,1725096180702,-500.0,0.00042191,120]
[336744767,1725096180749,-500.0,0.00042191,120]
[336744768,1725096180796,-500.0,0.00042191,120]
[336744769,1725096180844,-500.0,0.00042191,120]
[336744770,1725096180892,-548.88,0.00042191,120]
[336744771,1725096180939,-775.46,0.00042191,120]
[336744772,1725096180986,-1018.59,0.00042191,120]
[336744773,1725096181031,-540.19,0.00042191,120]
[336744774,1725096181074,-1162.77,0.00042191,120]
[336744775,1725096181119,-500.0,0.00042191,120]
[336744776,1725096181162,-500.0,0.00042191,120]
[336744777,1725096181205,-2066.04,0.00042191,120]
[336744778,1725096181248,-500.0,0.00042191,120]
[336744779,1725096181290,-500.0,0.00042191,120]
[336744780,1725096181332,-500.0,0.00042191,120]
[336744781,1725096181375,-500.0,0.00042191,120]
[336744782,1725096181417,-721.89,0.00042191,120]
[336744783,1725096181459,-666.61,0.00042191,120]
[336744784,1725096181503,-1547.45,0.00042191,120]
[336744785,1725096181547,-598.25,0.00042191,120]
[336744786,1725096181591,-558.12,0.00042191,120]
[336744787,1725096181635,-643.08,0.00042191,120]
[336744788,1725096181684,-585.19,0.00042191,120]
[336744789,1725096181730,-2179.7,0.00042191,120]
[336744790,1725096181778,-777.19,0.00042191,120]
[336744791,1725096181824,-2274.45,0.00042191,120]
[336744792,1725096181870,-500.0,0.00042191,120]
[336744793,1725096181919,-635.42,0.00042191,120]
[336744794,1725096181968,-500.0,0.00042191,120]
[336744795,1725096182017,-868.12,0.00042191,120]
[336744796,1725096182067,-500.0,0.00042191,120]
[336744797,1725096182118,-1151.6,0.00042191,120]
[336744798,1725096182168,-500.0,0.00042191,120]
[336744799,1725096182219,-562.37,0.00042191,120]
[336744800,1725096182270,-1582.23,0.00042191,120]
[336744801,1725096182320,-867.17,0.00042191,120]
[336744802,1725096182369,-1256.91,0.00042191,120]
[336744803,1725096182418,-500.0,0.00042191,120]
[336744804,1725096182467,-500.0,0.00042191,120]
[336744805,1725096182516,-500.0,0.00042191,120]
[336744806,1725096182569,-222.21728494,0.00042191,120]
[336744807,1725096182618,-735.6,0.00042191,120]
[336744808,1725096182670,-2186.79,0.00042191,120]
[336744809,1725096182723,-680.15,0.00042191,120]
[336744810,1725096182770,-4740.51,0.00042191,120]
[336744811,1725096182817,-500.0,0.00042191,120]
[336744812,1725096182866,-786.8,0.00042191,120]
[336744813,1725096182915,-601.44,0.00042191,120]
[336744814,1725096182962,-12860.68,0.00042191,120]
[336744815,1725096183009,-500.0,0.00042191,120]
[336744816,1725096183058,-834.67,0.00042191,120]
[336744817,1725096183105,-500.0,0.00042191,120]
[336744818,1725096183151,-500.0,0.00042191,120]
[336744819,1725096183198,-954.8,0.00042191,120]
[336744820,1725096183244,-961.43,0.00042191,120]
[336744821,1725096183288,-997.06,0.00042191,120]
[336744822,1725096183332,-500.0,0.00042191,120]
[336744823,1725096183542,-507.58,0.00042191,120]
[336744824,1725096183592,-500.0,0.00042191,120]
[336744825,1725096183644,-500.0,0.00042191,120]
[336744826,1725096183696,-996.39,0.00042191,120]
[336744827,1725096183746,-500.0,0.00042191,120]
[336744828,1725096183797,-615.17,0.00042191,120]
[336744829,1725096183850,-510.32,0.00042191,120]
[336744830,1725096183903,-4187.61,0.00042191,120]
[336744831,1725096183959,-941.17,0.00042191,120]
[336744832,1725096184014,-10782.5,0.00042191,120]
[336744833,1725096184065,-591.64,0.00042191,120]
[336744834,1725096184117,-500.0,0.00042191,120]
[336744835,1725096184167,-500.0,0.00042191,120]
[336744836,1725096184216,-500.0,0.00042191,120]
[336744837,1725096184265,-519.14,0.00042191,120]
[336744838,1725096184313,-675.23,0.00042191,120]
[336744839,1725096184361,-653.02,0.00042191,120]
[336744840,1725096184408,-500.0,0.00042191,120]
[336744841,1725096184456,-500.0,0.00042191,120]
[336744842,1725096184505,-1228.8,0.00042191,120]
[336744843,1725096184557,-557.32,0.00042191,120]
[336744844,1725096184612,-1015.85,0.00042191,120]
[336744845,1725096184665,-1823.12,0.00042191,120]
[336744846,1725096184716,-2186.95,0.00042191,120]
[336744847,1725096184769,-652.33,0.00042191,120]
[336744848,1725096184822,-500.0,0.00042191,120]
[336744849,1725096184875,-702.23,0.00042191,120]
[336744850,1725096184927,-2082.61,0.00042191,120]
[336744851,1725096184976,-500.0,0.00042191,120]
[336744852,1725096185025,-500.0,0.00042191,120]
[336744853,1725096185074,-478.76485951,0.00042191,120]
[336744854,1725096185123,-694.0,0.00042191,120]
[336744855,1725096185171,-997.15,0.00042191,120]
[336744856,1725096185220,-604.52,0.00042191,120]
[336744857,1725096185269,-501.24,0.00042191,120]
[336744858,1725096185317,-500.0,0.00042191,120]
[336744859,1725096185364,-831.62,0.00042191,120]
[336744860,1725096185412,-835.51,0.00042191,120]
[336744861,1725096185465,-762.21,0.00042191,120]
[336744862,1725096185515,-6300.15,0.00042191,120]
[336744863,1725096185565,-887.91,0.00042191,120]
[336744864,1725096185616,-593.65,0.00042191,120]
[336744865,1725096185667,-500.0,0.00042191,120]
[336744866,1725096185720,-4114.25,0.00042191,120]
[336744867,1725096185772,-636.31,0.00042191,120]
[336744868,1725096185824,-11442.62,0.00042191,120]
[336744869,1725096185874,-564.38,0.00042191,120]
[336744870,1725096185924,-500.0,0.00042191,120]
[336744871,1725096185975,-500.0,0.00042191,120]
[336744872,1725096186026,-1161.84,0.00042191,120]
[336744873,1725096186075,-1654.38,0.00042191,120]
[336744874,1725096186125,-588.17,0.00042191,120]
[336744875,1725096186174,-1647.2,0.00042191,120]
[336744876,1725096186222,-476.69552484,0.00042191,120]
[336744877,1725096186270,-500.0,0.00042191,120]
[336744878,1725096186317,-874.76,0.00042191,120]
[336744879,1725096186364,-1031.07,0.00042191,120]
[336744880,1725096186412,-1806.46,0.00042191,120]
[336744881,1725096186464,-1786.04,0.00042191,120]
[336744882,1725096186514,-500.0,0.00042191,120]
[336744883,1725096186564,-796.11,0.00042191,120]
[336744884,1725096186617,-4060.92,0.00042191,120]
[336744885,1725096186666,-1529.27,0.00042191,120]
[336744886,1725096186714,-764.48,0.00042191,120]
[336744887,1725096186763,-2246.61,0.00042191,120]
[336744888,1725096186812,-2118.38,0.00042191,120]
[336744889,1725096186861,-817.1,0.00042191,120]
[336744890,1725096186913,-500.0,0.00042191,120]
[336744891,1725096186962,-2580.32,0.00042191,120]
[336744892,1725096187012,-602.83,0.00042191,120]
[336744893,1725096187061,-2730.58,0.00042191,120]
[336744894,1725096187112,-567.84,0.00042191,120]
[336744895,1725096187165,-906.16,0.00042191,120]
[336744896,1725096187215,-881.66,0.00042191,120]
[336744897,1725096187265,-6580.53,0.00042191,120]
[336744898,1725096187315,-500.0,0.00042191,120]
[336744899,1725096187365,-776.12,0.00042191,120]
[336744900,1725096187416,-3133.75,0.00042191,120]
[336744901,1725096187466,-1318.72,0.00042191,120]
[336744902,1725096187514,-512.71,0.00042191,120]
[336744903,1725096187564,-500.0,0.00042191,120]
[336744904,1725096187616,-3220.73,0.00042191,120]
[336744905,1725096187663,-924.45,0.00042191,120]
[336744906,1725096187710,-1223.28,0.00042191,120]
[336744907,1725096187758,-1129.99,0.00042191,120]
[336744908,1725096187805,-500.0,0.00042191,120]
[336744909,1725096187853,-608.6,0.00042191,120]
[336744910,1725096187899,-1166.67,0.00042191,120]
[336744911,1725096187945,-500.0,0.00042191,120]
[336744912,1725096187991,-18433.68,0.00042191,120]
[336744913,1725096188036,-1392.73,0.00042191,120]
[336744914,1725096188083,-1402.0,0.00042191,120]
[336744915,1725096188132,-9146.0,0.00042191,120]
[336744916,1725096188177,-1370.15,0.00042191,120]
[336744917,1725096188223,-500.0,0.00042739,120]
[336744918,1725096188266,-761.33,0.00042739,120]
[336744919,1725096188310,-500.0,0.00042739,120]
[336744920,1725096188356,-500.0,0.00042739,120]
[336744921,1725096188400,-261.69212854,0.00042739,120]
[336744922,1725096188445,-500.0,0.00042739,120]
[336744923,1725096188492,-728.45,0.00042739,120]
[336744924,1725096188538,-500.0,0.00042739,120]
[336744925,1725096188584,-602.57,0.00042739,120]
[336744926,1725096188632,-500.0,0.00042739,120]
[336744927,1725096188840,-1536.81,0.00042739,120]
[336744928,1725096188892,-500.0,0.00042739,120]
[336744929,1725096188943,-718.45,0.00042739,120]
[336744930,1725096188992,-613.86,0.00042739,120]
[336744931,1725096189040,-500.0,0.00042739,120]
[336744932,1725096189088,-737.5,0.00042739,120]
[336744933,1725096189136,-500.0,0.00042739,120]
[336744934,1725096189184,-500.0,0.00042739,120]
[336744935,1725096189232,-500.0,0.00042739,120]
[336744936,1725096189278,-500.0,0.00042739,120]
[336744937,1725096189325,-500.0,0.00042739,120]
[336744938,1725096189376,-854.52,0.00042739,120]
[336744939,1725096189423,-500.0,0.00042739,120]
[336744940,1725096189473,-500.0,0.00042739,120]
[336744941,1725096189522,-500.0,0.00042739,120]
[336744942,1725096189575,-500.0,0.00042739,120]
[336744943,1725096189624,-500.0,0.00042739,120]
[336744944,1725096189673,-500.0,0.00042739,120]
[336744945,1725096189721,-500.0,0.00042739,120]
[336744946,1725096189772,-504.81,0.00042739,120]
[336744947,1725096189820,-500.0,0.00042739,120]
[336744948,1725096189868,-500.0,0.00042739,120]
[336744949,1725096189917,-577.66,0.00042739,120]
[336744950,1725096189964,-500.0,0.00042739,120]
[336744951,1725096190011,-537.13,0.00042739,120]
[336744952,1725096190060,-500.0,0.00042739,120]
[336744953,1725096190111,-639.49,0.00042739,120]
[336744954,1725096190160,-500.0,0.00042739,120]
[336744955,1725096190209,-500.0,0.00042739,120]
[336744956,1725096190261,-558.16,0.00042739,120]
[336744957,1725096190310,-500.0,0.00042739,120]
[336744958,1725096190361,-500.0,0.00042739,120]
[336744959,1725096190410,-606.69,0.00042739,120]
[336744960,1725096190460,-500.0,0.00042739,120]
[336744961,1725096190509,-500.0,0.00042739,120]
[336744962,1725096190557,-500.0,0.00042739,120]
[336744963,1725096190607,-500.06,0.00042739,120]
[336744964,1725096190660,-533.19,0.00042739,120]
[336744965,1725096190710,-781.37,0.00042739,120]
[336744966,1725096190758,-500.0,0.00042739,120]
[336744967,1725096190808,-500.0,0.00042739,120]
[336744968,1725096190856,-541.93,0.00042739,120]
[336744969,1725096190905,-541.84,0.00042739,120]
[336744970,1725096190953,-500.0,0.00042739,120]
[336744971,1725096191001,-500.0,0.00042739,120]
[336744972,1725096191051,-500.0,0.00042739,120]
[336744973,1725096191100,-500.0,0.00042739,120]
[336744974,1725096191149,-500.0,0.00042739,120]
[336744975,1725096191196,-600.0,0.00042739,120]
[336744976,1725096191244,-500.0,0.00042739,120]
[336744977,1725096191290,-500.0,0.00042739,120]
[336744978,1725096191335,-838.09,0.00042739,120]
[336744979,1725096191381,-500.0,0.00042739,120]
[336744980,1725096191425,-509.55,0.00042739,120]
[336744981,1725096191470,-500.0,0.00042739,120]
[336744982,1725096191516,-500.0,0.00042739,120]
[336744983,1725096191562,-708.98,0.00042739,120]
[336744984,1725096191608,-500.0,0.00042739,120]
[336744985,1725096191657,-500.0,0.00042739,120]
[336744986,1725096191701,-500.0,0.00042739,120]